{"text_format":"1","workbook":"xlsx","n_sheets":2,"sheets":["Sheet1","入力規則"],"not_rendered":{"charts":0,"images":1,"macros":1,"external_links":1,"defined_names":21,"comments":1,"pivot_tables":0},"unopened":[],"bounds":{"document_bytes":16777216,"sheet_cells":100000,"rows_first":2000,"rows_last":500,"rows_between":2000,"halvings":0,"cell_chars":16384,"cell_head_chars":4096},"cells_cut":0,"cells_raw":0,"read":"whole","date_system":"1904"}

{"sheet":"Sheet1","index":0,"n_rows":165,"n_cols":43,"rows_kept":165,"cut":false,"hidden":false,"merged":[[108,0,115,2],[108,3,110,4],[111,3,115,4],[100,0,107,2],[100,3,103,4],[106,9,106,11],[16,16,17,20],[26,26,26,29],[26,19,26,21],[23,15,23,17],[21,0,29,3],[30,0,51,2],[49,24,49,25],[31,17,31,19],[35,17,35,19],[43,21,43,22],[38,17,38,19],[50,5,51,30],[16,24,17,24],[16,26,17,26],[23,24,23,25],[23,27,23,29],[40,5,41,30],[46,21,46,22],[153,14,153,18],[59,0,67,3],[141,22,141,25],[141,27,141,29],[139,14,140,15],[139,0,146,1],[143,3,143,4],[144,3,144,4],[144,7,144,8],[143,7,143,8],[144,5,144,6],[146,5,146,6],[146,3,146,4],[146,10,146,12],[146,7,146,8],[146,13,146,20],[143,5,143,6],[92,0,99,3],[81,0,91,3],[102,6,102,7],[104,3,107,4],[143,27,143,29],[143,22,143,25],[142,23,142,25],[35,22,35,23],[38,22,38,23],[20,16,20,18],[12,4,12,6],[22,19,22,23],[13,17,13,20],[19,19,19,20],[23,19,24,23],[23,8,24,14],[22,8,22,14],[12,7,12,30],[13,9,13,12],[13,5,13,7],[16,23,17,23],[16,21,17,22],[16,25,17,25],[16,28,17,28],[16,29,17,30],[16,27,17,27],[13,27,13,30],[13,22,13,25],[3,30,6,30],[3,23,6,24],[3,22,6,22],[9,17,9,20],[9,9,9,12],[11,7,11,30],[7,0,7,3],[8,4,8,6],[7,7,7,30],[8,7,8,30],[9,5,9,7],[3,25,6,25],[3,26,6,26],[3,27,6,27],[3,29,6,29],[9,27,9,30],[139,9,140,9],[139,10,140,11],[143,9,144,9],[143,10,144,11],[3,0,3,3],[11,0,11,3],[3,28,6,28],[9,22,9,25],[5,6,6,12],[5,15,6,21],[3,15,3,21],[3,6,3,12],[49,21,49,22],[43,24,43,25],[43,17,43,19],[46,17,46,19],[49,17,49,19],[26,8,26,11],[30,3,41,4],[43,3,51,4],[46,24,46,25],[12,0,14,3],[19,5,19,14],[31,22,31,23],[142,27,142,29],[143,2,144,2],[139,12,140,13],[74,32,75,37],[139,5,140,6],[139,7,140,8],[140,22,140,25],[140,27,140,29],[104,5,104,30],[103,5,103,30],[112,15,112,16],[112,18,112,20],[102,9,102,11],[106,6,106,7],[139,22,139,25],[139,27,139,29],[143,14,144,15],[143,12,144,13],[141,5,142,6],[141,7,142,8],[139,2,140,2],[141,2,142,2],[139,3,140,4],[141,3,142,4]]}
["様式第①号",null,null,null,null,null,null,"   出光企業年金基金　老齢給付金裁定請求書"]
["（提出先）",null,null,null,null,null,null,null,null,null,null,"【加入期間20年以上の退職者用】"]
["出光企業年金基金　御中",null,null,null,null,null,null,null,null,null,null,null,null,null,null,null,null,null,null,null,null,null,"令和",null,null,"年",null,"月",null,"日提出"]
["フリガナ",null,null,null,null,null,null,null,null,null,null,null,null,null,null,null,null,null,null,null,null,null,"②　生年月日","昭和",null,null,"年",null,"月",null,"日"]
[null,null,null,null,"（氏）",null,null,null,null,null,null,null,null,null,"（名）"]
["①氏　　名",null,null,null,null,null,null,null,null,null,null,null,null,null,null,null,null,null,null,null,null,null,null,null,null,null,null,null,null,null,null,null,null,{"$f":"IF(TEXT(AG8, \"m/d\") = \"4/1\", AG8 - 1, AG8)","v":{"$error":"#VALUE!"}}]
[null,null,null,null,null,null,null,null,null,null,null,null,null,null,null,null,null,null,null,null,null,null,null,null,null,null,null,null,null,null,null,null,"②生年月日",null,null,null,"基金使用欄"]
["フリガナ",null,null,null,null,null,null,null,null,null,null,null,null,null,null,null,null,null,null,null,null,null,null,null,null,null,null,null,null,null,null,null,{"$f":"VALUE(X4&Z4&AA4&AB4&AC4&AD4&AE4)","v":{"$error":"#VALUE!"}}]
["③現住所",null,null,null,"（住所）\n　\n郵便番号",null,null,null,null,null,null,null,null,null,null,null,null,null,null,null,null,null,null,null,null,null,null,null,null,null,null,null,"⑤従業員コード","加入年月"]
[null,"〒・Tel",null,null,null,null,null,null,"－",null,null,null,null,null,null,"電話",null,null,null,null,null,"－",null,null,null,null,"－",null,null,null,null,null,{"$f":"CONCATENATE(F17,G17,H17,I17,J17,K17,L17,M17,N17,O17)","v":"99"},{"$f":"+ROUNDDOWN(+AK13/12,0)","v":0},"年",{"$f":"MOD(AK13,12)","v":1},"ヶ月"]
[]
["フリガナ",null,null,null,null,null,null,null,null,null,null,null,null,null,null,null,null,null,null,null,null,null,null,null,null,null,null,null,null,null,null,null,"⑥入社年月日","⑦退職年月日"]
["④退職後住所\n　（上記と同じであれば記入不要）",null,null,null,"（住所）\n　\n郵便番号",null,null,null,null,null,null,null,null,null,null,null,null,null,null,null,null,null,null,null,null,null,null,null,null,null,null,null,{"$f":"IF(AB17=\"\",\"\",VALUE(V17&X17&Y17&Z17&AA17&AB17&AC17))","v":""},{"$f":"IF(AB20=\"\",\"\",VALUE(T20&V20&W20&Y20&Z20&AB20&AC20))","v":""},null,null,{"$f":"DATEDIF(MIN(AG13:AH13),MAX(AG13:AH13),\"m\")+1","v":1}]
[null,null,null,null,null,null,null,null,"－",null,null,null,null,null,null,"電話",null,null,null,null,null,"－",null,null,null,null,"－"]
[]
[]
["⑤従業員ｺｰﾄﾞ",null,null,null,null,9,9,null,null,null,null,null,null,null,null,null,"⑥入社年月日",null,null,null,null,"昭和",null,null,"年",null,"月",null,"日","入社"]
["99含む10桁入力"]
[]
["加入者番号",null,null,null,null,{"$f":"VALUE(MID(AG10,3,3)&\"0\"&MID(AG10,6,4)&\"00\")","v":0},{"$f":"VALUE(MID(H20,3,3)&\"0\"&MID(H20,6,4)&\"00\")","v":0},0,0,0,0,0,0,0,0,null,"⑦退職",null,null,"令和",null,null,"年",null,null,"月",null,null,"日","退職"]
[null,null,null,null,null,null,null,null,null,null,null,null,null,null,null,null,"　　年月日",null,null,null,null,null,null,null,null,"（年齢",null,null,{"$f":"IF(AB20=\"\",\"\",DATEDIF(AG8,AH13,\"Y\"))","v":""},"歳）"]
["⑧送金先\n（銀行コード、店コードをご承知でしたら記入願います。）",null,null,null,null,"１．.銀行等の振込口座（本人名義の口座をご指定ください。）"]
[null,null,null,null,null,"（フリガナ）"]
[null,null,null,null,null,null,null,null,null,null,null,null,null,null,null,"銀行",null,null,null,null,null,null,null,null,"支店",null,null,"普通預金"]
[]
[]
[null,null,null,null,null,"銀行ｺｰﾄﾞ",null,null,null,null,null,null,null,null,null,null,"店コード",null,null,null,null,null,null,"口座番号(7桁)"]
[]
[null,null,null,null,null,null,"※ゆうちょ銀行への振込可能(記号番号ではなく、店コードと口座番号をご記入下さい)"]
[]
["⑨受給方法選択（一時金・年金）及び、年金開始時期の選択",null,null,"50歳未満の方"]
[null,null,null,null,null,"第１年金(ポイント制DBの２５％）",null,null,null,null,null,null,null,null,"受給方法",null,null,null,null,null,null,null,null,null,"歳誕生月の翌月から受給開始",null,null,null,null,null,null,null,"支給開始",{"$f":"IF(R32=\"\",\"\",IF($R$32=\"一時金\",\"\",DATE(YEAR($AH$6)+W32,MONTH($AH$6)+1,1)))","v":""},"～","支給終了",{"$f":"IF(AH32=\"\",\"\",IF(R32=\"5年\",DATE(YEAR(AH32)+5,MONTH(AH32)-1,DAY(1)),IF(R32=\"10年\",DATE(YEAR(AH32)+10,MONTH(AH32)-1,DAY(1)),IF(R32=\"15年\",DATE(YEAR(AH32)+15,MONTH(AH32)-1,DAY(1)),IF(R32=\"一時金\",DATE(YEAR(AH32),MONTH(AH32),DAY(1)),\"\")))))","v":""}]
[]
[]
[]
[null,null,null,null,null,"第２年金(ポイント制DBの２５％）",null,null,null,null,null,null,null,null,"受給方法",null,null,null,null,null,null,null,null,null,"歳誕生月の翌月から受給開始",null,null,null,null,null,null,null,"支給開始",{"$f":"IF(R36=\"\",\"\",IF($R$36=\"一時金\",\"\",DATE(YEAR($AH$6)+W36,MONTH($AH$6)+1,1)))","v":""},"～","支給終了",{"$f":"IF(AH36=\"\",\"\",IF(R36=\"5年\",DATE(YEAR(AH36)+5,MONTH(AH36)-1,DAY(1)),IF(R36=\"10年\",DATE(YEAR(AH36)+10,MONTH(AH36)-1,DAY(1)),IF(R36=\"15年\",DATE(YEAR(AH36)+15,MONTH(AH36)-1,DAY(1)),IF(R36=\"一時金\",DATE(YEAR(AH36),MONTH(AH36),DAY(1)),\"\")))))","v":""},null,"合計期間",{"$f":"IF(AC21>49,\"\",(DATEDIF(MIN(AG139:AG143),MAX(AH139:AH143),\"m\")+1))","v":""}]
[]
[]
[null,null,null,null,null,"第３年金(ポイント制DBの５０％）",null,null,null,null,null,null,null,null,"受給方法",null,null,null,null,null,null,null,null,null,"歳誕生月の翌月から受給開始",null,null,null,null,null,null,null,"支給開始",{"$f":"IF(R39=\"\",\"\",IF($R$39=\"一時金\",\"\",DATE(YEAR($AH$6)+W39,MONTH($AH$6)+1,1)))","v":""},"～","支給終了",{"$f":"IF(AH39=\"\",\"\",IF(R39=\"5年\",DATE(YEAR(AH39)+5,MONTH(AH39)-1,DAY(1)),IF(R39=\"10年\",DATE(YEAR(AH39)+10,MONTH(AH39)-1,DAY(1)),IF(R39=\"15年\",DATE(YEAR(AH39)+15,MONTH(AH39)-1,DAY(1)),IF(R39=\"一時金\",DATE(YEAR(AH39),MONTH(AH39),DAY(1)),\"\")))))","v":""},null,"期間判定",{"$f":"IF(AND(AN54=\"年金なし\"),\"OK\",+IF(COUNTIF(AK140:AK144,\"NG\"),\"NG\",\"OK\"))","v":"OK"}]
[]
[null,null,null,null,null,"（注）年金の場合は、65歳誕生月の翌月支給開始、70歳誕生月翌月までの間で支給開始の選択が可能。\n一時金の場合は即時支給となり、開始時期の選択ができません"]
[]
[]
[null,null,null,"50歳以上の方",null,"第１年金(ポイント制DBの２５％）",null,null,null,null,null,null,null,null,"受給方法",null,null,null,null,null,null,null,null,"歳",null,null,"月の翌月から受給開始",null,null,null,null,null,"支給開始",{"$f":"IF($R$44=\"\",\"\",IF($R$44=\"一時金\",\"\",IF($Y$44=\"誕生\",DATE(YEAR(AH6)+$V$44,MONTH(AH6)+1,1),DATE(YEAR(AH6)+$V$44+IF($Y$44<MONTH(AH6),1,0),Y44+1,1))))","v":""},"～","支給終了",{"$f":"IF(AH44=\"\",\"\",IF(R44=\"5年\",DATE(YEAR(AH44)+5,MONTH(AH44)-1,DAY(1)),IF(R44=\"10年\",DATE(YEAR(AH44)+10,MONTH(AH44)-1,DAY(1)),IF(R44=\"15年\",DATE(YEAR(AH44)+15,MONTH(AH44)-1,DAY(1)),IF(R44=\"一時金\",DATE(YEAR(AH44),MONTH(AH44),DAY(1)),\"\")))))","v":""}]
[]
[]
[null,null,null,null,null,"第２年金(ポイント制DBの２５％）",null,null,null,null,null,null,null,null,"受給方法",null,null,null,null,null,null,null,null,"歳",null,null,"月の翌月から受給開始",null,null,null,null,null,"支給開始",{"$f":"IF($R$47=\"\",\"\",IF($R$47=\"一時金\",\"\",IF($Y$47=\"誕生\",DATE(YEAR($AH$6)+$V$47,MONTH($AH$6)+1,1),DATE(YEAR($AH$6)+$V$47+IF($Y$47<MONTH(AH6),1,0),Y47+1,1))))","v":""},"～","支給終了",{"$f":"IF(AH47=\"\",\"\",IF(R47=\"5年\",DATE(YEAR(AH47)+5,MONTH(AH47)-1,DAY(1)),IF(R47=\"10年\",DATE(YEAR(AH47)+10,MONTH(AH47)-1,DAY(1)),IF(R47=\"15年\",DATE(YEAR(AH47)+15,MONTH(AH47)-1,DAY(1)),IF(R47=\"一時金\",DATE(YEAR(AH47),MONTH(AH47),DAY(1)),\"\")))))","v":""},null,"合計期間",{"$f":"DATEDIF(MIN(AG139:AG143),MAX(AH139:AH143),\"m\")+1","v":1}]
[]
[]
[null,null,null,null,null,"第３年金(ポイント制DBの５０％）",null,null,null,null,null,null,null,null,"受給方法",null,null,null,null,null,null,null,null,"歳",null,null,"月の翌月から受給開始",null,null,null,null,null,"支給開始",{"$f":"IF($R$50=\"\",\"\",IF($R$50=\"一時金\",\"\",IF($Y$50=\"誕生\",DATE(YEAR($AH$6)+$V$50,MONTH($AH$6)+1,1),DATE(YEAR($AH$6)+$V$50+IF($Y$50<MONTH(AH6),1,0),Y50+1,1))))","v":""},"～","支給終了",{"$f":"IF(AH50=\"\",\"\",IF(R50=\"5年\",DATE(YEAR(AH50)+5,MONTH(AH50)-1,DAY(1)),IF(R50=\"10年\",DATE(YEAR(AH50)+10,MONTH(AH50)-1,DAY(1)),IF(R50=\"15年\",DATE(YEAR(AH50)+15,MONTH(AH50)-1,DAY(1)),IF(R50=\"一時金\",DATE(YEAR(AH50),MONTH(AH50),DAY(1)),\"\")))))","v":""},null,"期間判定",{"$f":"IF(AND(AN53=\"年金なし\"),\"OK\",+IF(COUNTIF(AK140:AK144,\"NG\"),\"NG\",\"OK\"))","v":"OK"}]
[null,null,null,null,null,"（注）退職月の翌月支給開始、70歳誕生月翌月までの間で支給開始の選択が可能。\n一時金の場合は即時支給。\n"]
[]
["(注）年金の支給開始から全ての年金が支給終了するまでが20年を超える組合せは選択できません",null,null,null,null,null,null,null,null,null,null,null,null,null,null,null,null,null,null,null,null,null,null,null,null,null,null,null,null,null,null,null,null,null,null,{"$f":"+R44","v":0},{"$f":"+IF(AJ53=\"一時金\",\"一時金\",\"年金\")","v":"年金"},{"$f":"+R32","v":0},{"$f":"+IF(AL53=\"一時金\",\"一時金\",\"年金\")","v":"年金"},{"$f":"+IF(COUNTIF(AK53:AK55,\"年金\"),\"年金あり\",\"年金なし\")","v":"年金あり"}]
["(注）年金と年金の間に途切れる期間があってはなりません",null,null,null,null,null,null,null,null,null,null,null,null,null,null,null,null,null,null,null,null,null,null,null,null,null,null,null,null,null,null,null,null,null,null,{"$f":"+R47","v":0},{"$f":"+IF(AJ54=\"一時金\",\"一時金\",\"年金\")","v":"年金"},{"$f":"+R36","v":0},{"$f":"+IF(AL54=\"一時金\",\"一時金\",\"年金\")","v":"年金"},{"$f":"+IF(COUNTIF(AM53:AM55,\"年金\"),\"年金あり\",\"年金なし\")","v":"年金あり"}]
["(注）据置は最長70歳誕生月までです",null,null,null,null,null,null,null,null,null,null,null,null,null,null,null,null,null,null,null,null,null,null,null,null,null,null,null,null,null,null,null,null,null,null,{"$f":"+R50","v":0},"年金",{"$f":"+R39","v":0},"年金"]
["(注)当基金の年金は7.5%源泉税と復興税が徴収されます。公的年金等控除の対象であり、確定申告にて還付されるケースがあります"]
["(注)年金の給付利率は、国債の金利に連動し毎年見直され、年金額は毎年変わる可能性があります"]
["(注) 一時金は退職所得控除の範囲内であれば非課税となります"]
[]
["⑩他制度移換",null,null,null,null,null,"50歳未満の方のみ選択可。"]
[null,null,null,null,null,null,"(第1,2,3年金･全額を移換。移換を選択した方は下の移換先を1箇所選択してください)"]
[null,null,null,null,null,null,"（１）企業年金連合会へ移換する。",null,null,null,null,null,null,null,null,null,null,null,null,"（４）現時点では保留とし、1年経過するまでの間に選択する。"]
[null,null,null,null,null,null,null,null,null,null,null,null,null,null,null,null,null,null,"【10ヶ月以内に再選択されない場合は企業年金連合会へ"]
[null,null,null,null,null,null,"（２）転職先の年金制度へ移換する。",null,null,null,null,null,null,null,null,null,null,null,null,null,null,null,null,null,null,"移換することを同意します。】"]
[]
[null,null,null,null,null,null,"（３）国民年金基金連合会（個人型確定拠出年金）へ移換する。"]
[null,null,null,null,null,"※移換期限は、退職後１年以内です。"]
[null,null,null,null,null,"※留保中は金利は付きません。"]
[]
[null,null,null,null,null,null,null,null,null,"会社名",null,null,"出光興産株式会社",null,null,null,null,null,null,null,null,"連絡欄"]
["（添付が必要な書類）",null,null,null,null,null,null,null,null,"所在地",null,null,"東京都千代田区大手町1-2-1"]
["一時金を選択する場合は、退職所得の受給に関する申告書",null,null,null,null,null,null,null,null,null,null,null,null,null,null,null,null,null,null,null,null,null,null,null,null,null,null,null,null,null,"R4.10.1　改訂"]
[]
[]
[]
[]
[]
[]
[null,null,"【昭和シェル石油出身社員は、以下項目も確認の上、記入してください】"]
["※2021年7月以降に積み立てられたDBポイントの給付については、上記で指定されます。"]
["(⑩で他制度移換を選択した場合、記入不要です)"]
["\n⑪過去のｺｰｽ選択について\n\n2021年6月末時点で選択していた\n退職金ｺｰｽに「〇」を入れて下さい。",null,null,null,null,"人事webシステム<人事情報照会 に掲載されている[2021年6月末確定 退職金について]にて自身のコースを"]
[null,null,null,null,null,"確認し、本紙に添付してください。"]
[null,null,null,null,null,null,null,"Aコース",null,null,"…以下、⑫～⑭について記入は不要です。"]
[]
[null,null,null,null,null,null,null,"Bコース",null,null,"…","⑫（・⑬）を記入してください。"]
[]
[null,null,null,null,null,null,null,"Cコース",null,null,"…","⑫（・⑬）を記入してください。"]
[]
[null,null,null,null,null,null,null,"旧コース（退職金規程）",null,null,null,null,null,null,"…","⑫（・⑬）、⑭を記入してください。"]
[null,null,null,null,null,"※2002年3月以前に入社されている方でも、自身の意思でコース変更されている場合があります。"]
[]
["\n⑫年金の選択\n\n対象：\nB/C/旧コース",null,null,null,null,"※入社～2021年6月末までの退職金のうち、旧DB分(下図 参考：㋐）について、受取方法をご選択ください。"]
[]
[null,null,null,null,null,null,null,"　全額 15年確定年金として受給",null,null,null,null,null,null,null,null,null,null,null,null,"…⑬を記入してください"]
[]
[null,null,null,null,null,null,null,"　15年確定年金と一時金を受給（50％ずつ）",null,null,null,null,null,null,null,null,null,null,null,null,"…⑬を記入してください"]
[]
[null,null,null,null,null,null,null,"　全額 一時金として受給（即時）"]
[]
["⑬年金\n開始時期の選択\n\n対象：\nB/C/\n旧コース",null,null,"50歳未満の方",null,"（注）年金の場合は、65歳誕生月の翌月支給開始。70歳まで据置可能"]
[]
[null,null,null,null,null,null,null,null,"歳",null,null,null,"月の翌月から支給開始",null,null,null,null,null,null,null,null,null,null,null,null,null,null,null,null,null,null,null,"支給開始",{"$f":"IF(G103=\"\",\"\",IF(J103=\"誕生\",DATE(YEAR(AH6)+G103,MONTH(AH6)+1,1),DATE(YEAR(AH6)+G103,J103+1,1)))","v":""},"～","支給終了",{"$f":"IF($AH$103=\"\",\"\",(DATE(YEAR($AH$103)+15,MONTH($AH$103)-1,1)))","v":""},null,"合計期間",{"$f":"IF(G103=\"\",(DATEDIF($AH$107,$AP$103,\"m\")),DATEDIF($AH$103,$AQ$103,\"m\"))","v":{"$error":"#VALUE!"}},null,{"$f":"IF($AH$107=\"\",\"\",(DATE(YEAR($AH$107)+15,MONTH($AH$107),1)))","v":""},{"$f":"IF($AH$103=\"\",\"\",(DATE(YEAR($AH$103)+15,MONTH($AH$103),1)))","v":""}]
[]
[null,null,null,"50歳以上の方",null,"（注）退職月の翌月支給開始、70歳誕生月翌月までの間で支給開始の選択が可能。"]
[]
[null,null,null,null,null,null,null,null,"歳",null,null,null,"月の翌月から支給開始",null,null,null,null,null,null,null,null,null,null,null,null,null,null,null,null,null,null,null,"支給開始",{"$f":"IF($G$107=\"\",\"\",IF($J$107=\"誕生\",DATE(YEAR($AH$6)+$G$107,MONTH($AH$6)+1,1),DATE(YEAR($AH$6)+$G$107+IF($J$107<MONTH(AH6),1,0),$J$107+1,1)))","v":""},"～","支給終了",{"$f":"IF($AH$107=\"\",\"\",(DATE(YEAR($AH$107)+15,MONTH($AH$107)-1,1)))","v":""},null,"期間判定",{"$f":"IF($AK$139<20,\"OK\",\"NG\")","v":"OK"}]
[]
["\n⑭\n社内年金\n\n対象：\n旧コース",null,null,"55歳未満の方"]
[null,null,null,null,null,null,"一時金もしくは確定年金として受給（受給条件は、⑨で指定）"]
[]
[null,null,null,"55歳以上の方",null,"※入社～2021年6月末までの退職金のうち、一時金/社内年金(下図 参考：㋑）について、受取方法をご選択ください。"]
[null,null,null,null,null,null,null,null,"終身年金として受給",null,null,null,null,null,null,null,null,"歳",null,null,null,"月の翌月から支給開始",null,null,null,null,null,null,null,null,null,null,"支給開始",{"$f":"IF($G$113=\"\",\"\",IF($S$113=\"誕生\",DATE(YEAR($AH$6)+$P$113,MONTH($AH$6)+1,1),DATE(YEAR($AH$6)+$P$113+IF($S$113<MONTH(AH6),1,0),$S$113+1,1)))","v":""},"～","保証期間",{"$f":"IF($AH$113=\"\",\"\",(DATE(YEAR($AH$113)+15,MONTH($AH$113)-1,1)))","v":""},null,"合計期間",{"$f":"IF(G115=\"〇\",\"\",(+DATEDIF($AH$113,$AP$113,\"m\")))","v":{"$error":"#VALUE!"}},null,{"$f":"IF($AH$113=\"\",\"\",(DATE(YEAR($AH$113)+15,MONTH($AH$113),1)))","v":""}]
[]
[null,null,null,null,null,null,null,null,"一時金として受給（即時）",null,null,null,null,null,null,null,null,null,null,null,null,null,null,null,null,null,null,null,null,null,null,null,null,null,null,null,null,null,"期間判定",{"$f":"IF(G113=\"\",\"OK\",+IF(COUNTIF(AK140:AK144,\"NG\"),\"NG\",\"OK\"))","v":"OK"}]
[]
["（注）記載内容に変更が生じた場合は、出光企業年金基金にお申し出ください。"]
[]
["■　参考：旧 昭和シェル石油退職金制度(2021年6月末)"]
[]
[]
[]
[null,null,null,null,null,null,null,null,null,null,null,null,null,null,null,null,"注1)"]
[null,null,null,null,null,null,null,null,null,null,null,null,null,null,null,null,"昭和シェル出身社員が⑩他制度移換を選択した場合、"]
[null,null,null,null,null,null,null,null,null,null,null,null,null,null,null,null,"入社～2021年6月末までの退職金も含めて移換が為されますので、"]
[null,null,null,null,null,null,null,null,null,null,null,null,null,null,null,null,"⑪～⑭の指定内容は無効となりますのでご留意ください。"]
[]
[null,null,null,null,null,null,null,null,null,null,null,null,null,null,null,null,"注2)"]
[null,null,null,null,null,null,null,null,null,null,null,null,null,null,null,null,"㋑について、55歳未満の方は給付方法を⑨で"]
[null,null,null,null,null,null,null,null,null,null,null,null,null,null,null,null,"選択頂きます。"]
[null,null,null,null,null,null,null,null,null,null,null,null,null,null,null,null,"2021年7月以降のDBポイント分と㋑を合算して、"]
[null,null,null,null,null,null,null,null,null,null,null,null,null,null,null,null,"第1～3年金で給付を行います。"]
[]
[null,null,null,null,null,null,null,null,null,null,null,null,null,null,null,null,"注3)"]
[null,null,null,null,null,null,null,null,null,null,null,null,null,null,null,null,"㋒については、給付方法を⑨で選択頂きます。"]
[null,null,null,null,null,null,null,null,null,null,null,null,null,null,null,null,"2021年7月以降のDBポイント分と㋒を合算して、"]
[null,null,null,null,null,null,null,null,null,null,null,null,null,null,null,null,"第1～3年金で給付を行います。",null,null,null,null,null,null,null,null,null,null,null,null,null,null,null,"20年以内",{"$f":"IF($AK$139<20,\"OK\",\"NG\")","v":"OK"}]
[]
[null,null,null,null,null,null,null,null,null,null,null,null,null,null,null,null,null,null,null,null,null,null,null,null,null,null,null,null,null,null,null,null,{"$f":"IF(W140=\"\",\"\",EDATE($W140,1))","v":""},{"$f":"IF(AB140=\"\",\"\",EDATE($AB140,1))","v":""},null,null,{"$f":"DATEDIF(MIN($W$140:$Z$144),MAX($AB$140:$AD$144),\"y\")","v":0}]
["基\n金\n使\n用\n欄",null,"基加１",null,null,null,null,null,null,"基加２",null,null,null,null,null,null,null,null,null,1,"01",null,{"$f":"IF($AC$21>=50,AH44,AH32)","v":""},null,null,null,"-",{"$f":"IF($AC$21>=50,AK44,AK32)","v":""},null,null,null,null,{"$f":"IF(W141=\"\",\"\",EDATE($W141,1))","v":""},{"$f":"IF(AB141=\"\",\"\",EDATE($AB141,1))","v":""},null,"空白期間",{"$f":"IF(AG139=\"\",\"\",IF(AK139>21,\"NG\",(+IF(AG139<+MAX($AH$140:$AH$143),\"OK\",(IF(SUM(AH140:AH143)=0,\"OK\",\"NG\"))))))","v":""}]
[null,null,null,null,null,null,null,null,null,null,null,null,null,null,null,null,null,null,null,null,"02",null,{"$f":"IF($AC$21>=50,AH47,AH36)","v":""},null,null,null,"-",{"$f":"IF($AC$21>=50,AK47,AK36)","v":""},null,null,null,null,{"$f":"IF(W142=\"\",\"\",EDATE($W142,1))","v":""},{"$f":"IF(AB142=\"\",\"\",EDATE($AB142,1))","v":""},null,"空白期間",{"$f":"IF(AG140=\"\",\"\",IF(AK139>21,\"NG\",(+IF(AG140<+MAX(AH139,AH141:AH143),\"OK\",(IF(SUM(AH139,AH141:AH143)=0,\"OK\",\"NG\"))))))","v":""}]
[null,null,"基加３",null,null,null,null,null,null,null,null,null,null,null,null,null,null,null,null,null,"03",null,{"$f":"IF($AC$21>=50,AH50,AH39)","v":""},null,null,null,"-",{"$f":"IF($AC$21>=50,AK50,AK39)","v":""},null,null,null,null,{"$f":"IF(X143=\"\",\"\",EDATE($X143,1))","v":""},{"$f":"+IF(AB143=\"\",\"\",EDATE($AB143,1))","v":""},null,"空白期間",{"$f":"IF(AG141=\"\",\"\",IF(AK139>21,\"NG\",(+IF(AG141<+MAX(AH139:AH140,AH142:AH143),\"OK\",(IF(SUM(AH139:AH140,AH142:AH143)=0,\"OK\",\"NG\"))))))","v":""}]
[null,null,null,null,null,null,null,null,null,null,null,null,null,null,null,null,null,null,null,2,"04",null,null,{"$f":"IF($AC$21>=50,AH107,AH103)","v":""},null,null,"-",{"$f":"IF($AC$21>=50,AK107,AK103)","v":""},null,null,null,null,{"$f":"IF(W144=\"\",\"\",EDATE($W144,1))","v":""},{"$f":"IF(AB144=\"\",\"\",EDATE($AB144,1))","v":""},null,"空白期間",{"$f":"IF(AG142=\"\",\"\",IF(AK139>21,\"NG\",(IF(AG142<+MAX(AH139:AH141,AH143),\"OK\",(IF(SUM(AH139:AH141,AH143)=0,\"OK\",\"NG\"))))))","v":""}]
[null,null,"基加４",null,null,null,null,null,null,"基加５",null,null,null,null,null,null,null,null,null,3,"05",null,{"$f":"+AH113","v":""},null,null,null,"-",{"$f":"+AK113","v":""},null,null,null,null,"退職年齢55歳未満判定",{"$f":"IF($AC$21<55,\"55歳未満\",\"\")","v":""},null,"空白期間",{"$f":"IF(AG143=\"\",\"\",IF(AK139>21,\"NG\",(+IF(AG143<+MAX($AH$139:$AH$142),\"OK\",(IF(SUM(AH139:AH142)=0,\"OK\",\"NG\"))))))","v":""}]
[]
[]
[null,null,"繰下",null,null,null,null,null,null,null,"受給権者\n番号",null,null,null,null,null,null,null,null,null,null,null,null,null,null,null,null,null,null,null,null,null,null,null,null,null,{"$f":"+IF(SUM(AH139:AH141,AH143)=\"\",\"OK\",\"\")","v":""}]
[]
["<基金使用欄>"]
["受給権者番号","加入員番号","性別","生年月日"]
[{"$f":"+N147","v":0},{"$f":"+F20","v":0},null,{"$f":"+AG8","v":{"$error":"#VALUE!"}}]
[]
["氏名（カナ）","氏名（漢字）","郵便番号","住所１（漢字）\n政令指定都市・千葉県の市・東京都の市・周南市・姫路市・知多市・苫小牧市は、都道府県名を省略する。","住所２（漢字）\n住所が２５文字以上の場合は、住所２に上回る分を記載する","電話番号","業務区分","銀行コード","支店コード","銀行名","支店名","預金種目","口座番号","口座名義人","退職日"]
[{"$f":"+ASC(G4&\" \"&P4)","v":" "},{"$f":"+G6&\"　\"&P6","v":"　"},{"$f":"+ASC(F10&\"-\"&J10)","v":"-"},{"$f":"LEFT(H9,25)","v":""},{"$f":"MID(H9,26,80)","v":""},{"$f":"ASC(R10&\"-\"&W10&\"-\"&AB10)","v":"--"},1,{"$f":"ASC(I27)","v":""},"",{"$f":"ASC(I23)","v":""},{"$f":"ASC(T23)","v":""},{"$f":"IF(AB24=\"普通預金\",1,IF(AB24=\"当座預金\",2,\"\"))","v":1},{"$f":"ASC(AA27)","v":""},{"$f":"+A154","v":" "},{"$f":"+AH13","v":""}]
[]
["<01>年金区分","<01>支給開始"]
[{"$f":"IF(R44=\"一時金\",\"\",IF(R44=\"5年\",2,IF(R44=\"10年\",3,IF(R44=\"15年\",4))))","v":false},{"$f":"+W140","v":""},null,null,null,null,null,"※A列が「2，3，4，」の場合はエクセル台帳にコピーする"]
["<02>年金区分","<02>支給開始"]
[{"$f":"IF(R47=\"一時金\",\"\",IF(R47=\"5年\",2,IF(R47=\"10年\",3,IF(R47=\"15年\",4))))","v":false},{"$f":"+W141","v":""},null,null,null,null,null,"※A列が「2，3，4，」の場合はエクセル台帳にコピーする"]
["<03>年金区分","<03>支給開始"]
[{"$f":"IF(R50=\"一時金\",\"\",IF(R50=\"5年\",2,IF(R50=\"10年\",3,IF(R50=\"15年\",4))))","v":false},{"$f":"+W142","v":""},null,null,null,null,null,"※A列が「2，3，4，」の場合はエクセル台帳にコピーする"]
["<04>選択割合","<04>年金区分","<04>支給開始"]
[{"$f":"IF(F99=\"〇\",\"\",IF(F95=\"〇\",1,IF(F97=\"〇\",0.5)))","v":false},{"$f":"IF(F97=\"〇\",4,\"\")&IF(F95=\"〇\",4,\"\")","v":""},{"$f":"+X143","v":""},null,null,null,null,"※A列が「1，0.5」の場合はエクセル台帳にコピーする"]
["<05>年金区分","<05>支給開始"]
[{"$f":"IF(G113=\"〇\",2,IF(G115=\"〇\",\"\",))","v":0},{"$f":"+W144","v":""},null,null,null,null,null,"※A列が「2」の場合はエクセル台帳にコピーする"]

{"sheet":"入力規則","index":1,"n_rows":65,"n_cols":21,"rows_kept":65,"cut":false,"hidden":false,"merged":[]}
[null,null,"生年月日","年","月","日","選択","支給開始年齢","昭和","平成","令和","金融機関","支店","預金種別","月","年金期間",null,null,null,null,"裁定"]
[null,null,"昭和",1,1,1,"〇",50,1,1,1,"銀行","支店","普通預金","誕生","5年",null,50,55,null,"済"]
[null,null,"平成",2,2,2,null,51,2,2,2,"信金","部","当座預金",1,"10年",null,51,56]
[null,null,"令和",3,3,3,null,52,3,3,3,"農協",null,null,2,"15年",null,52,57]
[null,null,null,4,4,4,null,53,4,4,4,"信組",null,null,3,"一時金",null,53,58]
[null,null,null,5,5,5,null,54,5,5,5,null,null,null,4,null,null,54,59]
[null,null,null,6,6,6,null,55,6,6,6,null,null,null,5,null,null,55,60]
[null,null,null,7,7,7,null,56,7,7,7,null,null,null,6,null,null,56,61]
[null,null,null,8,8,8,null,57,8,8,8,null,null,null,7,null,null,57,62]
[null,null,null,9,9,9,null,58,9,9,9,null,null,null,8,null,null,58,63]
[null,null,null,10,10,10,null,59,10,10,10,null,null,null,9,null,null,59,64]
[null,null,null,11,11,11,null,60,11,11,11,null,null,null,10,null,null,60,65]
[null,null,null,12,12,12,null,61,12,12,12,null,null,null,11,null,null,61,66]
[null,null,null,13,null,13,null,62,13,13,13,null,null,null,12,null,null,62,67]
[null,null,null,14,null,14,null,63,14,14,14,null,null,null,null,null,null,63,68]
[null,null,null,15,null,15,null,64,15,15,15,null,null,null,null,null,null,64,69]
[null,null,null,16,null,16,null,65,16,16,16,null,null,null,null,null,null,65,70]
[null,null,null,17,null,17,null,66,17,17,17,null,null,null,null,null,null,66]
[null,null,null,18,null,18,null,67,18,18,18,null,null,null,null,null,null,67]
[null,null,null,19,null,19,null,68,19,19,19,null,null,null,null,null,null,68]
[null,null,null,20,null,20,null,69,20,20,20,null,null,null,null,null,null,69]
[null,null,null,21,null,21,null,70,21,21,null,null,null,null,null,null,null,70]
[null,null,null,22,null,22,null,null,22,22]
[null,null,null,23,null,23,null,null,23,23]
[null,null,null,24,null,24,null,null,24,24]
[null,null,null,25,null,25,null,null,25,25]
[null,null,null,26,null,26,null,null,26,26]
[null,null,null,27,null,27,null,null,27,27]
[null,null,null,28,null,28,null,null,28,28]
[null,null,null,29,null,29,null,null,29,29]
[null,null,null,30,null,30,null,null,30,30]
[null,null,null,31,null,31,null,null,31,31]
[null,null,null,32,null,null,null,null,32]
[null,null,null,33,null,null,null,null,33]
[null,null,null,34,null,null,null,null,34]
[null,null,null,35,null,null,null,null,35]
[null,null,null,36,null,null,null,null,36]
[null,null,null,37,null,null,null,null,37]
[null,null,null,38,null,null,null,null,38]
[null,null,null,39,null,null,null,null,39]
[null,null,null,40,null,null,null,null,40]
[null,null,null,41,null,null,null,null,41]
[null,null,null,42,null,null,null,null,42]
[null,null,null,43,null,null,null,null,43]
[null,null,null,44,null,null,null,null,44]
[null,null,null,45,null,null,null,null,45]
[null,null,null,46,null,null,null,null,46]
[null,null,null,47,null,null,null,null,47]
[null,null,null,48,null,null,null,null,48]
[null,null,null,49,null,null,null,null,49]
[null,null,null,50,null,null,null,null,50]
[null,null,null,51,null,null,null,null,51]
[null,null,null,52,null,null,null,null,52]
[null,null,null,53,null,null,null,null,53]
[null,null,null,54,null,null,null,null,54]
[null,null,null,55,null,null,null,null,55]
[null,null,null,56,null,null,null,null,56]
[null,null,null,57,null,null,null,null,57]
[null,null,null,58,null,null,null,null,58]
[null,null,null,59,null,null,null,null,59]
[null,null,null,60,null,null,null,null,60]
[null,null,null,61,null,null,null,null,61]
[null,null,null,62,null,null,null,null,62]
[null,null,null,63,null,null,null,null,63]
[null,null,null,64,null,null,null,null,64]